[Event "Early-Titled-Tuesday-Blitz-October-03-2023"]
[Site "Chess.com"]
[Date "2023.10.03"]
[Round "3"]
[White "Alexei_Gubajdullin"]
[Black "Polish_fighter3000"]
[Result "1/2-1/2"]
[WhiteElo "2741"]
[BlackElo "3086"]
[TimeControl "180+1"]
[EndTime "8:30:28 PDT"]
[Termination "Game drawn - insufficient material"]

1. d4 {[%clk 0:03:00.9]} 1... Nf6 {[%clk 0:02:59.1]} 2. Nf3 {[%clk 0:03:00.6]}
2... h6 {[%clk 0:02:54.2]} 3. Bf4 {[%clk 0:02:56]} 3... g5 {[%clk 0:02:50.4]} 4.
Be5 {[%clk 0:02:54.6]} 4... Bg7 {[%clk 0:02:50.1]} 5. h3 {[%clk 0:02:54.6]} 5...
d6 {[%clk 0:02:45]} 6. Bh2 {[%clk 0:02:53.2]} 6... c5 {[%clk 0:02:43.7]} 7. c3
{[%clk 0:02:52]} 7... Qb6 {[%clk 0:02:42.9]} 8. Qc2 {[%clk 0:02:43.9]} 8... Nc6
{[%clk 0:02:15.4]} 9. e3 {[%clk 0:02:42.6]} 9... Be6 {[%clk 0:02:15.5]} 10. Nbd2
{[%clk 0:02:40.7]} 10... Rc8 {[%clk 0:02:11.9]} 11. Nc4 {[%clk 0:02:29.1]} 11...
Bxc4 {[%clk 0:01:38.3]} 12. Bxc4 {[%clk 0:02:28.1]} 12... O-O {[%clk 0:01:35.4]}
13. Qe2 {[%clk 0:02:18.7]} 13... cxd4 {[%clk 0:01:30.4]} 14. exd4 {[%clk
0:02:18.3]} 14... e5 {[%clk 0:01:29.3]} 15. dxe5 {[%clk 0:02:13.8]} 15... dxe5
{[%clk 0:01:29.3]} 16. O-O {[%clk 0:02:07.7]} 16... e4 {[%clk 0:01:29.3]} 17.
Ne5 {[%clk 0:01:44]} 17... Nxe5 {[%clk 0:00:57.8]} 18. Bxe5 {[%clk 0:01:43.1]}
18... Qc5 {[%clk 0:00:50.3]} 19. Bxf6 {[%clk 0:01:42.9]} 19... Qxc4 {[%clk
0:00:50.7]} 20. Qxc4 {[%clk 0:01:42.4]} 20... Rxc4 {[%clk 0:00:51.6]} 21. Bxg7
{[%clk 0:01:37.8]} 21... Kxg7 {[%clk 0:00:52.5]} 22. Rad1 {[%clk 0:01:36.7]}
22... Ra4 {[%clk 0:00:50.8]} 23. a3 {[%clk 0:01:34.6]} 23... Ra6 {[%clk
0:00:50]} 24. Rfe1 {[%clk 0:01:32.7]} 24... f5 {[%clk 0:00:45.4]} 25. g4 {[%clk
0:01:20.2]} 25... Rb6 {[%clk 0:00:39.8]} 26. Rd7+ {[%clk 0:01:15.5]} 26... Kg6
{[%clk 0:00:37.6]} 27. gxf5+ {[%clk 0:01:12.3]} 27... Rxf5 {[%clk 0:00:38.5]}
28. b4 {[%clk 0:01:06.5]} 28... Rf3 {[%clk 0:00:34.6]} 29. Re3 {[%clk
0:01:05.9]} 29... Rxe3 {[%clk 0:00:17.8]} 30. fxe3 {[%clk 0:01:05.9]} 30... Rc6
{[%clk 0:00:18.4]} 31. Rxb7 {[%clk 0:00:57.1]} 31... Rxc3 {[%clk 0:00:18.7]} 32.
Rxa7 {[%clk 0:00:57.2]} 32... Rxe3 {[%clk 0:00:18.8]} 33. b5 {[%clk 0:00:48.8]}
33... Rb3 {[%clk 0:00:15.3]} 34. a4 {[%clk 0:00:47.8]} 34... Kh5 {[%clk
0:00:11.2]} 35. Ra6 {[%clk 0:00:46.6]} 35... Rxh3 {[%clk 0:00:10.8]} 36. a5
{[%clk 0:00:37.7]} 36... Rg3+ {[%clk 0:00:10.4]} 37. Kf2 {[%clk 0:00:36.4]}
37... Rb3 {[%clk 0:00:06.8]} 38. Rb6 {[%clk 0:00:36]} 38... Kg4 {[%clk
0:00:07.2]} 39. a6 {[%clk 0:00:35.1]} 39... Ra3 {[%clk 0:00:06]} 40. Rxh6 {[%clk
0:00:33.6]} 40... Kf4 {[%clk 0:00:06.1]} 41. Rf6+ {[%clk 0:00:32.8]} 41... Ke5
{[%clk 0:00:06.3]} 42. Rf7 {[%clk 0:00:32.2]} 42... Kd4 {[%clk 0:00:04.6]} 43.
a7 {[%clk 0:00:29.7]} 43... e3+ {[%clk 0:00:04.6]} 44. Kf3 {[%clk 0:00:27.5]}
44... Kc5 {[%clk 0:00:03.7]} 45. Rb7 {[%clk 0:00:18.5]} 45... g4+ {[%clk
0:00:03.8]} 46. Ke2 {[%clk 0:00:13.3]} 46... g3 {[%clk 0:00:03.7]} 47. b6 {[%clk
0:00:12.8]} 47... g2 {[%clk 0:00:02.8]} 48. Rg7 {[%clk 0:00:10.2]} 48... Kxb6
{[%clk 0:00:03]} 49. Kf3 {[%clk 0:00:08.8]} 49... Rxa7 {[%clk 0:00:01.4]} 50.
Rxg2 {[%clk 0:00:08.6]} 50... Re7 {[%clk 0:00:01.7]} 51. Re2 {[%clk 0:00:08.4]}
51... Kc5 {[%clk 0:00:02.2]} 52. Rxe3 {[%clk 0:00:08.8]} 52... Rf7+ {[%clk
0:00:02.9]} 53. Ke2 {[%clk 0:00:08.6]} 53... Ra7 {[%clk 0:00:03.8]} 54. Re4
{[%clk 0:00:08.7]} 54... Kd5 {[%clk 0:00:04]} 55. Re3 {[%clk 0:00:08.9]} 55...
Ra4 {[%clk 0:00:04.2]} 56. Rd3+ {[%clk 0:00:09]} 56... Kc4 {[%clk 0:00:04.8]}
57. Re3 {[%clk 0:00:09.2]} 57... Ra6 {[%clk 0:00:04.8]} 58. Re4+ {[%clk
0:00:08.8]} 58... Kc3 {[%clk 0:00:04.5]} 59. Re3+ {[%clk 0:00:09.1]} 59... Kc2
{[%clk 0:00:05]} 60. Re4 {[%clk 0:00:09.3]} 60... Ra2 {[%clk 0:00:05.5]} 61. Re3
{[%clk 0:00:08.9]} 61... Rb2 {[%clk 0:00:05.3]} 62. Re4 {[%clk 0:00:08.6]} 62...
Kc3+ {[%clk 0:00:05.7]} 63. Ke3 {[%clk 0:00:08.2]} 63... Rb1 {[%clk 0:00:06.3]}
64. Ke2 {[%clk 0:00:07.9]} 64... Rh1 {[%clk 0:00:05.9]} 65. Re3+ {[%clk
0:00:07.5]} 65... Kc2 {[%clk 0:00:05.5]} 66. Re4 {[%clk 0:00:07.2]} 66... Rh2+
{[%clk 0:00:06.1]} 67. Ke3 {[%clk 0:00:07.5]} 67... Kc3 {[%clk 0:00:06.5]} 68.
Rf4 {[%clk 0:00:07.3]} 68... Rh3+ {[%clk 0:00:05.4]} 69. Rf3 {[%clk 0:00:07.6]}
69... Rh8 {[%clk 0:00:05.7]} 70. Ke4+ {[%clk 0:00:07.6]} 70... Kc4 {[%clk
0:00:05.6]} 71. Rf4 {[%clk 0:00:08.1]} 71... Re8+ {[%clk 0:00:05.9]} 72. Kf3+
{[%clk 0:00:08.2]} 72... Kd3 {[%clk 0:00:06.2]} 73. Rf5 {[%clk 0:00:08.5]} 73...
Re3+ {[%clk 0:00:06.5]} 74. Kf4 {[%clk 0:00:08.4]} 74... Re4+ {[%clk 0:00:06.4]}
75. Kg5 {[%clk 0:00:08.6]} 75... Ke3 {[%clk 0:00:06]} 76. Kf6 {[%clk 0:00:08.5]}
76... Rf4 {[%clk 0:00:06]} 77. Rxf4 {[%clk 0:00:08.4]} 77... Kxf4 {[%clk
0:00:06.9]} 1/2-1/2

[Event "Early-Titled-Tuesday-Blitz-October-03-2023"]
[Site "Chess.com"]
[Date "2023.10.03"]
[Round "3"]
[White "Eagle_2019"]
[Black "BilodeauA"]
[Result "1/2-1/2"]
[WhiteElo "2680"]
[BlackElo "2908"]
[TimeControl "180+1"]
[EndTime "8:30:29 PDT"]
[Termination "Game drawn by repetition"]

1. d4 {[%clk 0:03:00.9]} 1... d5 {[%clk 0:03:00.4]} 2. c4 {[%clk 0:03:00.3]}
2... dxc4 {[%clk 0:03:01.3]} 3. Nf3 {[%clk 0:02:59.8]} 3... a6 {[%clk
0:03:01.1]} 4. e3 {[%clk 0:02:57.4]} 4... Bg4 {[%clk 0:03:01.2]} 5. Bxc4 {[%clk
0:02:56.8]} 5... e6 {[%clk 0:03:01.1]} 6. O-O {[%clk 0:02:56.4]} 6... Nc6 {[%clk
0:03:01.1]} 7. Nc3 {[%clk 0:02:48.9]} 7... Nf6 {[%clk 0:03:00.9]} 8. Be2 {[%clk
0:02:45.6]} 8... Bd6 {[%clk 0:03:00.1]} 9. h3 {[%clk 0:02:41]} 9... Bh5 {[%clk
0:03:00]} 10. b3 {[%clk 0:02:36.4]} 10... Nd5 {[%clk 0:02:58.3]} 11. Bb2 {[%clk
0:02:34.1]} 11... f5 {[%clk 0:02:56.4]} 12. Ne5 {[%clk 0:02:07.9]} 12... Bxe2
{[%clk 0:02:54.5]} 13. Nxc6 {[%clk 0:01:52.3]} 13... Bxd1 {[%clk 0:02:53]} 14.
Nxd8 {[%clk 0:01:51.9]} 14... Rxd8 {[%clk 0:02:34.9]} 15. Raxd1 {[%clk
0:01:50.8]} 15... O-O {[%clk 0:02:33.5]} 16. a3 {[%clk 0:01:17.8]} 16... c6
{[%clk 0:02:17.7]} 17. b4 {[%clk 0:01:17.2]} 17... Nb6 {[%clk 0:02:15]} 18. Rb1
{[%clk 0:00:52.4]} 18... Nc4 {[%clk 0:02:14.3]} 19. Na4 {[%clk 0:00:49.7]} 19...
b5 {[%clk 0:02:12]} 20. Rbc1 {[%clk 0:00:19.9]} 20... a5 {[%clk 0:01:45.1]} 21.
bxa5 {[%clk 0:00:14.3]} 21... Nxa5 {[%clk 0:01:39.4]} 22. Nc5 {[%clk 0:00:12]}
22... Bxc5 {[%clk 0:01:39.8]} 23. Rxc5 {[%clk 0:00:12.9]} 23... Rd5 {[%clk
0:01:36.9]} 24. Rxd5 {[%clk 0:00:11.3]} 24... exd5 {[%clk 0:01:34.9]} 25. Bc3
{[%clk 0:00:09.6]} 25... Nc4 {[%clk 0:01:34.6]} 26. Bb4 {[%clk 0:00:09.6]} 26...
Ra8 {[%clk 0:01:35.3]} 27. Ra1 {[%clk 0:00:09.6]} 27... g5 {[%clk 0:01:34.3]}
28. g3 {[%clk 0:00:09.7]} 28... Kg7 {[%clk 0:01:31.3]} 29. Kg2 {[%clk
0:00:09.8]} 29... Kf6 {[%clk 0:01:31.9]} 30. Kf3 {[%clk 0:00:09.7]} 30... h5
{[%clk 0:01:30.2]} 31. h4 {[%clk 0:00:09.8]} 31... gxh4 {[%clk 0:01:28.6]} 32.
gxh4 {[%clk 0:00:10.7]} 32... Rg8 {[%clk 0:01:12.3]} 33. a4 {[%clk 0:00:10.5]}
33... bxa4 {[%clk 0:01:08.7]} 34. Rxa4 {[%clk 0:00:11.4]} 34... Rb8 {[%clk
0:00:48.8]} 35. Be1 {[%clk 0:00:09.3]} 35... Nd6 {[%clk 0:00:46.2]} 36. Ra6
{[%clk 0:00:08.6]} 36... Rc8 {[%clk 0:00:46.7]} 37. Bb4 {[%clk 0:00:05.6]} 37...
Ne4 {[%clk 0:00:45.8]} 38. Ra7 {[%clk 0:00:05.1]} 38... Re8 {[%clk 0:00:42.3]}
39. Ra6 {[%clk 0:00:03.2]} 39... Re6 {[%clk 0:00:42.5]} 40. Ra8 {[%clk
0:00:03.4]} 40... Kg6 {[%clk 0:00:40.8]} 41. Rg8+ {[%clk 0:00:03.7]} 41... Kh7
{[%clk 0:00:40.3]} 42. Rf8 {[%clk 0:00:04.1]} 42... Nf6 {[%clk 0:00:39.3]} 43.
Rf7+ {[%clk 0:00:03.5]} 43... Kg6 {[%clk 0:00:39.6]} 44. Re7 {[%clk 0:00:03.9]}
44... Rxe7 {[%clk 0:00:35.5]} 45. Bxe7 {[%clk 0:00:04.8]} 45... Ne4 {[%clk
0:00:35.5]} 46. Ke2 {[%clk 0:00:05.2]} 46... f4 {[%clk 0:00:33.8]} 47. exf4
{[%clk 0:00:05.4]} 47... Kf5 {[%clk 0:00:34]} 48. f3 {[%clk 0:00:05.7]} 48...
Nc3+ {[%clk 0:00:32.1]} 49. Kd3 {[%clk 0:00:05.8]} 49... Nb5 {[%clk 0:00:32.8]}
50. Bg5 {[%clk 0:00:05.8]} 50... Nc7 {[%clk 0:00:31]} 51. Bh6 {[%clk 0:00:05.5]}
51... Kg6 {[%clk 0:00:29.7]} 52. Bg5 {[%clk 0:00:05.7]} 52... Ne6 {[%clk
0:00:30.6]} 53. Ke3 {[%clk 0:00:05.5]} 53... Kf5 {[%clk 0:00:30.2]} 54. Bh6
{[%clk 0:00:05.8]} 54... Kf6 {[%clk 0:00:30.7]} 55. Bg5+ {[%clk 0:00:05.9]}
55... Kg6 {[%clk 0:00:31]} 56. Kd3 {[%clk 0:00:05.5]} 56... Ng7 {[%clk 0:00:31]}
57. Ke2 {[%clk 0:00:05]} 57... Nf5 {[%clk 0:00:27.7]} 58. Kd3 {[%clk 0:00:05.3]}
58... Kf7 {[%clk 0:00:28.3]} 59. Kc3 {[%clk 0:00:05.3]} 59... Ke6 {[%clk
0:00:28.9]} 60. Kd3 {[%clk 0:00:05.5]} 60... Kd7 {[%clk 0:00:29.2]} 61. Kc3
{[%clk 0:00:05.6]} 61... Kc7 {[%clk 0:00:24.4]} 62. Kd3 {[%clk 0:00:05.8]} 62...
Kb6 {[%clk 0:00:25]} 63. Bf6 {[%clk 0:00:06.3]} 63... Kb5 {[%clk 0:00:25.9]} 64.
Bg5 {[%clk 0:00:06.7]} 64... Kb4 {[%clk 0:00:26.4]} 65. Bf6 {[%clk 0:00:05.9]}
65... Kb3 {[%clk 0:00:26.9]} 66. Bg5 {[%clk 0:00:06]} 66... Kb2 {[%clk
0:00:26.8]} 67. Bf6 {[%clk 0:00:06.1]} 67... Kc1 {[%clk 0:00:27.1]} 68. Kc3
{[%clk 0:00:06.5]} 68... Kd1 {[%clk 0:00:27]} 69. Kb4 {[%clk 0:00:06.8]} 69...
Ke2 {[%clk 0:00:27.4]} 70. Kc5 {[%clk 0:00:07.1]} 70... Kxf3 {[%clk 0:00:27.6]}
71. Kxc6 {[%clk 0:00:07.4]} 71... Ke4 {[%clk 0:00:27.7]} 72. Kc5 {[%clk
0:00:07.6]} 72... Ne3 {[%clk 0:00:26.5]} 73. Bg5 {[%clk 0:00:07.6]} 73... Nf5
{[%clk 0:00:21]} 74. Bf6 {[%clk 0:00:07.7]} 74... Ne3 {[%clk 0:00:13.3]} 75. Bg5
{[%clk 0:00:07.6]} 75... Kf5 {[%clk 0:00:12.4]} 76. Kd6 {[%clk 0:00:06.2]} 76...
Ke4 {[%clk 0:00:11.5]} 77. Kc5 {[%clk 0:00:06.3]} 1/2-1/2

[Event "Early-Titled-Tuesday-Blitz-October-03-2023"]
[Site "Chess.com"]
[Date "2023.10.03"]
[Round "3"]
[White "AdvanceGuard4"]
[Black "viktorgen2021"]
[Result "1-0"]
[WhiteElo "2647"]
[BlackElo "2451"]
[TimeControl "180+1"]
[EndTime "8:30:31 PDT"]
[Termination "AdvanceGuard4 won on time"]

1. e4 {[%clk 0:02:51.2]} 1... g6 {[%clk 0:02:57.3]} 2. d4 {[%clk 0:02:51.1]}
2... Bg7 {[%clk 0:02:56.1]} 3. Bc4 {[%clk 0:02:51.1]} 3... d6 {[%clk 0:02:53.8]}
4. Nf3 {[%clk 0:02:49.8]} 4... Nf6 {[%clk 0:02:52.9]} 5. Qe2 {[%clk 0:02:49.6]}
5... O-O {[%clk 0:02:52.5]} 6. O-O {[%clk 0:02:49.9]} 6... Bg4 {[%clk
0:02:51.3]} 7. Nbd2 {[%clk 0:02:50.2]} 7... Nc6 {[%clk 0:02:51.1]} 8. c3 {[%clk
0:02:50.2]} 8... e5 {[%clk 0:02:51.6]} 9. dxe5 {[%clk 0:02:48.8]} 9... Nxe5
{[%clk 0:02:51.4]} 10. Bb3 {[%clk 0:02:49.1]} 10... Re8 {[%clk 0:02:43.1]} 11.
Bc2 {[%clk 0:02:45.6]} 11... d5 {[%clk 0:02:34.7]} 12. h3 {[%clk 0:02:39.6]}
12... Nxf3+ {[%clk 0:02:28.8]} 13. Nxf3 {[%clk 0:02:39.5]} 13... Bxf3 {[%clk
0:02:28.9]} 14. Qxf3 {[%clk 0:02:30.9]} 14... dxe4 {[%clk 0:02:24.4]} 15. Qe2
{[%clk 0:02:31.4]} 15... Qd6 {[%clk 0:02:18.5]} 16. Bg5 {[%clk 0:02:28.9]} 16...
Qe5 {[%clk 0:02:10.1]} 17. Bh4 {[%clk 0:02:28.9]} 17... Nh5 {[%clk 0:02:06.3]}
18. Rfe1 {[%clk 0:02:23]} 18... Qf4 {[%clk 0:01:45.4]} 19. Qg4 {[%clk 0:02:20]}
19... f5 {[%clk 0:01:44]} 20. Qxf4 {[%clk 0:02:15.2]} 20... Nxf4 {[%clk
0:01:44.9]} 21. Bg3 {[%clk 0:02:16.1]} 21... Ne6 {[%clk 0:01:44.8]} 22. Bb3
{[%clk 0:02:11.1]} 22... Rad8 {[%clk 0:01:26]} 23. Rad1 {[%clk 0:02:07]} 23...
Rxd1 {[%clk 0:01:00.5]} 24. Rxd1 {[%clk 0:02:07.2]} 24... Kf7 {[%clk 0:01:01.1]}
25. Bxc7 {[%clk 0:01:52.1]} 25... Re7 {[%clk 0:00:57.8]} 26. Bd8 {[%clk
0:01:45.5]} 26... Re8 {[%clk 0:00:58.3]} 27. Rd7+ {[%clk 0:01:44.2]} 27... Kf8
{[%clk 0:00:58.3]} 28. Bxe6 {[%clk 0:01:41.8]} 28... Rxe6 {[%clk 0:00:58.3]} 29.
Rxb7 {[%clk 0:01:42.5]} 29... Ra6 {[%clk 0:00:47.9]} 30. a3 {[%clk 0:01:42.4]}
30... Be5 {[%clk 0:00:38]} 31. g3 {[%clk 0:01:28.1]} 31... Ke8 {[%clk
0:00:37.1]} 32. Re7+ {[%clk 0:01:18.6]} 32... Kxd8 {[%clk 0:00:36.8]} 33. Rxe5
{[%clk 0:01:19.5]} 33... Rb6 {[%clk 0:00:32.5]} 34. Rd5+ {[%clk 0:01:19.7]}
34... Ke7 {[%clk 0:00:32.4]} 35. Rd2 {[%clk 0:01:20.6]} 35... Ke6 {[%clk
0:00:32.4]} 36. h4 {[%clk 0:01:19.8]} 36... Ke5 {[%clk 0:00:32.9]} 37. c4 {[%clk
0:01:13.6]} 37... h6 {[%clk 0:00:30.5]} 38. b4 {[%clk 0:01:11.3]} 38... g5
{[%clk 0:00:30.4]} 39. hxg5 {[%clk 0:01:11.1]} 39... hxg5 {[%clk 0:00:31.3]} 40.
Rd5+ {[%clk 0:01:08.8]} 40... Ke6 {[%clk 0:00:31.3]} 41. Ra5 {[%clk 0:01:09.2]}
41... Rc6 {[%clk 0:00:29.1]} 42. c5 {[%clk 0:01:07]} 42... Rc7 {[%clk
0:00:29.3]} 43. Kf1 {[%clk 0:01:01.2]} 43... f4 {[%clk 0:00:22.6]} 44. gxf4
{[%clk 0:01:02.1]} 44... gxf4 {[%clk 0:00:23.5]} 45. Ke2 {[%clk 0:01:03]} 45...
Kd5 {[%clk 0:00:23.8]} 46. Ra6 {[%clk 0:01:00]} 46... Kc4 {[%clk 0:00:21]} 47.
Rf6 {[%clk 0:01:00.3]} 47... f3+ {[%clk 0:00:16.7]} 48. Ke3 {[%clk 0:01:01]}
48... Re7 {[%clk 0:00:16.8]} 49. Rf4 {[%clk 0:00:56.2]} 49... Kd5 {[%clk
0:00:17.2]} 50. Rf5+ {[%clk 0:00:55.8]} 50... Kc4 {[%clk 0:00:17.7]} 51. c6
{[%clk 0:00:55.2]} 51... Kb3 {[%clk 0:00:17.8]} 52. Ra5 {[%clk 0:00:51]} 52...
Rc7 {[%clk 0:00:13.8]} 53. Ra6 {[%clk 0:00:49.2]} 53... Re7 {[%clk 0:00:13.4]}
54. b5 {[%clk 0:00:47.4]} 54... Kc4 {[%clk 0:00:13.7]} 55. a4 {[%clk 0:00:47.8]}
55... Kc5 {[%clk 0:00:13.7]} 56. c7 {[%clk 0:00:40.9]} 56... Rxc7 {[%clk
0:00:13.9]} 57. Kxe4 {[%clk 0:00:41.3]} 57... Rf7 {[%clk 0:00:13.5]} 58. Ke5
{[%clk 0:00:38.6]} 58... Kc4 {[%clk 0:00:11.8]} 59. Rd6 {[%clk 0:00:34.1]} 59...
Kb4 {[%clk 0:00:09.8]} 60. Rd4+ {[%clk 0:00:34.2]} 60... Kc3 {[%clk 0:00:08.8]}
61. Rh4 {[%clk 0:00:33.3]} 61... Kd2 {[%clk 0:00:07.4]} 62. Ke6 {[%clk
0:00:32.7]} 62... Rf8 {[%clk 0:00:07.3]} 63. Ke7 {[%clk 0:00:29.5]} 63... Rf5
{[%clk 0:00:07.6]} 64. Re4 {[%clk 0:00:29.6]} 64... Kd3 {[%clk 0:00:06.9]} 65.
Re3+ {[%clk 0:00:29.6]} 65... Kc4 {[%clk 0:00:07.5]} 66. Kd6 {[%clk 0:00:28.7]}
66... Kb4 {[%clk 0:00:07.6]} 67. Re4+ {[%clk 0:00:28.9]} 67... Kc3 {[%clk
0:00:07.2]} 68. Kc7 {[%clk 0:00:28.5]} 68... Rf7+ {[%clk 0:00:07.5]} 69. Kb8
{[%clk 0:00:27.4]} 69... Kd3 {[%clk 0:00:07.8]} 70. Re3+ {[%clk 0:00:27.3]}
70... Kc4 {[%clk 0:00:08.2]} 71. Re5 {[%clk 0:00:25.9]} 71... Kd4 {[%clk
0:00:07.5]} 72. Re3 {[%clk 0:00:25.7]} 72... Kc4 {[%clk 0:00:07.7]} 73. Kc8
{[%clk 0:00:25.2]} 73... Kb4 {[%clk 0:00:08]} 74. Re4+ {[%clk 0:00:25]} 74...
Kc5 {[%clk 0:00:08.7]} 75. Kd8 {[%clk 0:00:23.9]} 75... Kd5 {[%clk 0:00:09]} 76.
Re7 {[%clk 0:00:23.7]} 76... Rf8+ {[%clk 0:00:03]} 77. Kd7 {[%clk 0:00:21.8]}
77... Kc5 {[%clk 0:00:03.1]} 78. Ke6 {[%clk 0:00:21.3]} 78... Kb4 {[%clk
0:00:03.3]} 79. Rxa7 {[%clk 0:00:21.1]} 79... Re8+ {[%clk 0:00:02.6]} 80. Re7
{[%clk 0:00:20.1]} 1-0

[Event "Early-Titled-Tuesday-Blitz-October-03-2023"]
[Site "Chess.com"]
[Date "2023.10.03"]
[Round "3"]
[White "blitzking1729"]
[Black "DenLaz"]
[Result "1/2-1/2"]
[WhiteElo "2735"]
[BlackElo "3062"]
[TimeControl "180+1"]
[EndTime "8:30:34 PDT"]
[Termination "Game drawn by repetition"]

1. d4 {[%clk 0:03:00.9]} 1... Nf6 {[%clk 0:02:59.3]} 2. c4 {[%clk 0:03:01.5]}
2... e6 {[%clk 0:02:59.6]} 3. g3 {[%clk 0:03:00.9]} 3... d5 {[%clk 0:02:58.8]}
4. Bg2 {[%clk 0:03:01.2]} 4... Bb4+ {[%clk 0:02:59]} 5. Nd2 {[%clk 0:03:00.7]}
5... O-O {[%clk 0:02:58.5]} 6. Nf3 {[%clk 0:03:00.8]} 6... b6 {[%clk 0:02:58.8]}
7. O-O {[%clk 0:03:00.5]} 7... Bb7 {[%clk 0:02:58.7]} 8. a3 {[%clk 0:02:59.6]}
8... Be7 {[%clk 0:02:57.7]} 9. cxd5 {[%clk 0:02:59.3]} 9... exd5 {[%clk
0:02:56.4]} 10. b4 {[%clk 0:02:59.9]} 10... a5 {[%clk 0:02:52.8]} 11. b5 {[%clk
0:02:59.7]} 11... c6 {[%clk 0:02:52.7]} 12. Qa4 {[%clk 0:02:59.6]} 12... cxb5
{[%clk 0:02:45.9]} 13. Qxb5 {[%clk 0:02:58.8]} 13... Ba6 {[%clk 0:02:46.6]} 14.
Qb2 {[%clk 0:02:58.3]} 14... Nbd7 {[%clk 0:02:47.1]} 15. Ne5 {[%clk 0:02:49.3]}
15... Rc8 {[%clk 0:02:45.8]} 16. Ndf3 {[%clk 0:02:47.8]} 16... b5 {[%clk
0:02:38.2]} 17. Bh3 {[%clk 0:02:36.8]} 17... Rc7 {[%clk 0:01:53]} 18. Bd2 {[%clk
0:02:30.2]} 18... b4 {[%clk 0:01:42.8]} 19. axb4 {[%clk 0:02:29.9]} 19... Bxe2
{[%clk 0:01:42.5]} 20. Rfe1 {[%clk 0:02:16.3]} 20... Bxf3 {[%clk 0:01:40.3]} 21.
Nxf3 {[%clk 0:02:16.7]} 21... axb4 {[%clk 0:01:30.8]} 22. Bxb4 {[%clk
0:02:08.4]} 22... Bxb4 {[%clk 0:01:27.8]} 23. Qxb4 {[%clk 0:02:09.3]} 23... Ne4
{[%clk 0:01:27.8]} 24. Bg2 {[%clk 0:01:59.7]} 24... Rc2 {[%clk 0:01:22.7]} 25.
Qb3 {[%clk 0:01:51.2]} 25... Rxf2 {[%clk 0:01:11.4]} 26. Qxd5 {[%clk 0:01:50.8]}
26... Nef6 {[%clk 0:01:10]} 27. Qd6 {[%clk 0:01:41.6]} 27... Rb2 {[%clk
0:01:07.4]} 28. Ne5 {[%clk 0:01:37.5]} 28... Nxe5 {[%clk 0:00:43.8]} 29. dxe5
{[%clk 0:01:35.9]} 29... Qxd6 {[%clk 0:00:33.4]} 30. exd6 {[%clk 0:01:36.8]}
30... Rd2 {[%clk 0:00:33.8]} 31. Red1 {[%clk 0:01:35.9]} 31... Rxd1+ {[%clk
0:00:30.6]} 32. Rxd1 {[%clk 0:01:36.8]} 32... Rd8 {[%clk 0:00:31.2]} 33. Bh3
{[%clk 0:01:10.6]} 33... Ne4 {[%clk 0:00:25.2]} 34. d7 {[%clk 0:01:09.2]} 34...
Kf8 {[%clk 0:00:25.4]} 35. Bf5 {[%clk 0:01:02.9]} 35... Nf6 {[%clk 0:00:24.4]}
36. h4 {[%clk 0:00:53.7]} 36... g6 {[%clk 0:00:22.7]} 37. Bh3 {[%clk 0:00:53.3]}
37... Ne4 {[%clk 0:00:16.6]} 38. Kg2 {[%clk 0:00:48.2]} 38... Nc5 {[%clk
0:00:15.8]} 39. h5 {[%clk 0:00:42.6]} 39... Ke7 {[%clk 0:00:14.6]} 40. hxg6
{[%clk 0:00:41.9]} 40... hxg6 {[%clk 0:00:14.3]} 41. Rd5 {[%clk 0:00:30.4]}
41... Nxd7 {[%clk 0:00:13.6]} 42. Bxd7 {[%clk 0:00:30]} 42... Rxd7 {[%clk
0:00:13.8]} 43. Ra5 {[%clk 0:00:30.8]} 43... Ke6 {[%clk 0:00:13.4]} 44. Ra3
{[%clk 0:00:28.7]} 44... Rd4 {[%clk 0:00:12]} 45. Kf3 {[%clk 0:00:29.1]} 45...
Kf6 {[%clk 0:00:12.3]} 46. Ra6+ {[%clk 0:00:28.8]} 46... Kg5 {[%clk 0:00:12.5]}
47. Ra5+ {[%clk 0:00:29.4]} 47... f5 {[%clk 0:00:13]} 48. Ra3 {[%clk 0:00:30]}
48... Rc4 {[%clk 0:00:12.7]} 49. Rb3 {[%clk 0:00:30.1]} 49... Rd4 {[%clk
0:00:11.8]} 50. Ra3 {[%clk 0:00:30.6]} 50... Rd6 {[%clk 0:00:12.3]} 51. Rb3
{[%clk 0:00:29.8]} 51... Kf6 {[%clk 0:00:12.7]} 52. Ra3 {[%clk 0:00:29.1]} 52...
g5 {[%clk 0:00:12.6]} 53. Rb3 {[%clk 0:00:28.1]} 53... g4+ {[%clk 0:00:12.3]}
54. Ke2 {[%clk 0:00:25.2]} 54... Kg5 {[%clk 0:00:10.8]} 55. Rb2 {[%clk
0:00:22.2]} 55... Rh6 {[%clk 0:00:10.4]} 56. Kf1 {[%clk 0:00:21.3]} 56... Rh1+
{[%clk 0:00:09.5]} 57. Kg2 {[%clk 0:00:21.8]} 57... Rd1 {[%clk 0:00:09.8]} 58.
Ra2 {[%clk 0:00:21.6]} 58... Kf6 {[%clk 0:00:10.3]} 59. Re2 {[%clk 0:00:20]}
59... Rd3 {[%clk 0:00:10.4]} 60. Kf2 {[%clk 0:00:19.8]} 60... Rd5 {[%clk
0:00:09.6]} 61. Kg2 {[%clk 0:00:20]} 61... Re5 {[%clk 0:00:10.2]} 62. Ra2 {[%clk
0:00:20.3]} 62... Re3 {[%clk 0:00:10]} 63. Kf2 {[%clk 0:00:19.3]} 63... Rb3
{[%clk 0:00:09.6]} 64. Re2 {[%clk 0:00:18.6]} 64... Rb6 {[%clk 0:00:07.7]} 65.
Kg2 {[%clk 0:00:18.2]} 65... Re6 {[%clk 0:00:08]} 66. Ra2 {[%clk 0:00:18.6]}
66... Ke5 {[%clk 0:00:04]} 67. Ra5+ {[%clk 0:00:18.6]} 67... Kf6 {[%clk
0:00:03.6]} 68. Ra2 {[%clk 0:00:19]} 68... Re5 {[%clk 0:00:04.2]} 69. Ra6+
{[%clk 0:00:17.4]} 69... Kg5 {[%clk 0:00:04]} 70. Kf2 {[%clk 0:00:16.1]} 70...
Rb5 {[%clk 0:00:03.9]} 71. Ra2 {[%clk 0:00:16.3]} 71... Kf6 {[%clk 0:00:04.5]}
72. Re2 {[%clk 0:00:15.6]} 72... Re5 {[%clk 0:00:04.1]} 73. Ra2 {[%clk
0:00:15.9]} 73... Rd5 {[%clk 0:00:04.1]} 74. Re2 {[%clk 0:00:15.8]} 74... Rd6
{[%clk 0:00:04.6]} 75. Kg2 {[%clk 0:00:15.7]} 75... Re6 {[%clk 0:00:04.8]} 76.
Ra2 {[%clk 0:00:16.2]} 1/2-1/2